bitfinex/quotes_SOLUSD_20241205
["timestamp","ask_amount","ask_price","bid_price","bid_amount"]
[1733441193087,25.91118301,239.98,239.87,6.5726]
[1733441193403,0.07520166,239.93,239.87,7.19757553]
[1733441194879,0.07518102,239.94,239.87,7.19757553]
[1733441195373,0.07518102,239.94,239.88,23.776884]
[1733441195577,0.07518102,239.94,239.87,7.19757553]
[1733441195792,170.99,240.0,239.87,7.19757553]
[1733441197107,170.99,240.0,239.88,23.776884]
[1733441197312,170.99,240.0,239.89,0.62493786]
[1733441197490,170.99,240.0,239.9,6.5726]
[1733441197803,170.99,240.0,239.94,2.3736]
[1733441198178,170.99,240.0,239.95,6.5726]
[1733441198779,164.3234,240.0,239.96,23.776884]
[1733441198978,161.6953,240.0,239.96,24.4017311]
[1733441199202,151.1477,240.0,239.96,0.6248471]
[1733441199800,151.1477,240.0,239.95,6.5726]
[1733441200788,151.1477,240.0,239.96,4.154]
[1733441202110,151.1477,240.0,239.95,6.5726]
[1733441206017,151.1477,240.0,239.93,208.68790261]
[1733441206389,151.1477,240.0,239.94,0.62492472]
[1733441212001,151.1477,240.0,239.96,23.776884]
[1733441212208,151.1477,240.0,239.99,4.154]
[1733441212406,151.1477,240.0,239.99,27.930884]
[1733441213325,151.23218836,240.0,239.99,27.930884]
[1733441215115,151.23218836,240.0,239.99,23.776884]
[1733441215515,151.23218836,240.0,239.98,0.62479773]
[1733441215820,151.23218836,240.0,239.97,0.62486215]
[1733441216833,151.23218836,240.0,239.96,0.62489003]
[1733441220731,151.23218836,240.0,239.96,4.77889003]
[1733441222044,151.23218836,240.0,239.98,4.154]
[1733441222219,151.23218836,240.0,239.99,23.776884]
[1733441223041,151.23218836,240.0,239.98,0.62483981]
[1733441223539,100.86184762,240.0,239.99,40.21639734]
[1733441223744,94.19524762,240.0,239.99,37.73009734]
[1733441223940,73.63683493,240.0,239.99,37.73009734]
[1733441224124,73.63683493,240.0,239.99,38.35473496]
[1733441224736,73.63683493,240.0,239.99,51.79636445]
[1733441225720,49.86683493,240.0,239.99,51.79636445]
[1733441225923,49.66818674,240.0,239.99,51.79636445]
[1733441226248,29.734446,240.0,239.99,28.01948045]
[1733441226422,9.80070526,240.0,239.99,28.01948045]
[1733441228055,9.80070526,240.0,239.99,51.79636445]
[1733441228217,9.80070526,240.0,239.99,38.35473496]
[1733441228415,9.80070526,240.0,239.99,8.64003762]
[1733441229354,9.80070526,240.0,239.99,0.62463762]
[1733441229534,9.80070526,240.0,239.97,0.62376215]
[1733441229937,15.86100526,240.0,239.97,0.62376215]
[1733441230144,15.86100526,240.0,239.96,0.62446518]
[1733441230328,23.776884,239.99,239.95,4.97939477]
[1733441230538,23.776884,239.99,239.83,208.68790261]
[1733441230736,23.776884,239.99,239.84,0.62487393]
[1733441231041,26.238084,239.97,239.84,0.62487393]
[1733441231240,23.776884,239.95,239.84,0.62487393]
[1733441231427,0.78150511,239.94,239.83,208.68790261]
[1733441231626,23.776884,239.93,239.83,208.68790261]
[1733441231935,23.776884,239.91,239.83,208.68790261]
[1733441232152,6.0603,239.88,239.73,208.68790261]
[1733441232324,23.776884,239.87,239.74,0.62538488]
[1733441232652,6.0603,239.88,239.74,0.62538488]
[1733441233321,0.07912447,239.75,239.74,0.62538488]
[1733441237055,0.08506796,239.79,239.74,0.62538488]
[1733441237056,0.4933036,240.03,239.76,20.20776124]
[1733441237264,0.4933036,240.03,239.93,208.68790261]
[1733441237430,0.4933036,240.03,239.94,0.62432481]
[1733441241633,1e-08,240.0,239.94,0.62432481]
[1733441242563,6.0603,240.12,239.94,0.62432481]
[1733441242738,6.0603,240.12,239.99,207.80500252]
[1733441242937,6.0603,240.12,240.0,0.62362778]
[1733441243579,2.4612,240.15,240.0,0.62362778]
[1733441246070,6.0603,240.2,240.0,0.62362778]
[1733441250452,6.0603,240.2,240.13,207.80500252]
[1733441250759,6.0603,240.2,240.14,0.62306365]
[1733441251273,2.4612,240.25,240.14,0.62306365]
[1733441253353,0.09156347,240.15,240.14,0.62306365]
[1733441253764,1.0,240.4,240.14,21.54177086]
[1733441253982,1.0,240.4,240.28,207.80500252]
[1733441254180,1.0,240.4,240.29,0.62204939]
[1733441255687,1.0,240.4,240.29,4.77604939]
[1733441255965,1.0,240.4,240.29,0.62204939]
[1733441258195,1.0,240.4,240.28,207.80500252]
[1733441258506,1.0,240.4,240.29,0.62240788]
[1733441258670,1.0,240.4,240.29,4.77640788]
[1733441258873,1.0,240.4,240.29,0.62240788]
[1733441259595,1.0,240.4,240.29,4.77640788]
[1733441260700,1.0,240.4,240.29,0.62240788]
[1733441261507,6.201,240.32,240.18,207.80500252]
[1733441261802,6.201,240.32,240.19,0.62261263]
[1733441263092,6.201,240.39,240.28,207.80500252]
[1733441263400,6.201,240.39,240.29,0.6218811]
[1733441264387,0.77995795,240.38,240.28,207.80500252]
[1733441264575,6.201,240.39,240.29,0.62248998]
[1733441268090,1.0,240.4,240.29,4.48848998]
[1733441268307,1.0,240.4,240.29,0.62248998]
[1733441269976,4.0,240.44,240.29,0.62248998]
[1733441269977,3.4,240.44,240.29,0.62248998]
[1733441273313,0.07617295,240.3,240.29,0.62248998]
[1733441280687,0.07617295,240.3,240.29,4.77648998]
[1733441282799,0.07617295,240.3,240.29,0.62248998]
[1733441286323,9.21937295,240.3,240.29,0.62248998]
[1733441286524,9.21937295,240.3,240.29,0.62252901]
[1733441287025,9.21937295,240.3,240.28,207.80500252]
[1733441287323,24.55720806,240.29,240.18,207.80500252]
[1733441287822,6.407,240.25,240.18,207.80500252]
[1733441288121,24.55749322,240.24,240.18,207.80500252]
[1733441288308,24.55749322,240.24,239.98,3.866]
[1733441288621,24.55749322,240.24,239.99,0.62343952]
[1733441288994,23.776884,240.22,239.99,0.62343952]
[1733441289194,23.776884,240.2,239.95,0.62374458]
[1733441289414,23.776884,240.18,239.95,5.98019471]
[1733441289602,23.776884,240.18,239.95,0.62374458]
[1733441289911,23.776884,240.21,239.95,0.62374458]
[1733441290105,23.776884,240.19,239.95,0.62374458]
[1733441290600,9.1432,240.23,239.95,0.62374458]
[1733441290807,23.776884,240.21,239.95,0.62374458]
[1733441291112,9.1432,240.23,239.95,0.62374458]
[1733441291504,9.1432,240.23,239.98,20.54145013]
[1733441291710,9.1432,240.23,240.0,20.27957336]
[1733441291913,9.1432,240.23,240.01,0.6231462]
[1733441293428,0.09050395,240.02,240.01,20.89164829]
[1733441293626,0.09050395,240.02,240.01,0.6231462]
[1733441293835,0.09050395,240.02,240.01,20.89164829]
[1733441294299,0.08190917,240.04,240.03,40.86338008]
[1733441294498,6.407,240.29,240.03,41.48583227]
[1733441294828,6.407,240.29,240.03,46.34016783]
[1733441295199,6.407,240.29,240.03,26.34016783]
[1733441295415,6.407,240.29,240.03,21.48583227]
[1733441296403,6.4884,240.26,240.03,0.62245219]
[1733441296726,0.78059425,240.25,239.98,0.62338403]
[1733441296911,23.776884,240.24,239.98,0.62338403]
[1733441297112,6.4884,240.26,239.98,0.62338403]
[1733441297113,23.776884,240.22,239.98,0.62338403]
[1733441297518,23.776884,240.24,239.98,0.62338403]
[1733441297733,6.4884,240.26,239.99,20.72068612]
[1733441297942,6.4884,240.26,240.03,20.86338008]
[1733441298102,6.4884,240.26,240.04,0.62286404]
[1733441298735,6.4884,240.26,240.06,20.0]
[1733441298907,6.4884,240.26,240.07,0.62252445]
[1733441299121,2.9501,240.27,240.07,0.62252445]
[1733441299449,6.4884,240.33,240.07,0.62252445]
[1733441299450,9.4385,240.33,240.07,0.62252445]
[1733441299651,0.7802191,240.32,240.07,0.62252445]
[1733441300014,9.4385,240.33,240.07,0.62252445]
[1733441300218,0.78021498,240.32,240.07,0.62252445]
[1733441300524,9.4385,240.33,240.07,0.62252445]
[1733441300727,24.55712792,240.32,240.07,0.62252445]
[1733441301214,24.55712792,240.32,240.08,0.62319671]
[1733441301615,9.4385,240.33,240.08,0.62319671]
[1733441301846,0.78020902,240.32,240.08,0.62319671]
[1733441302029,9.4385,240.33,240.08,0.62319671]
[1733441302230,9.4385,240.33,240.1,4.6826]
[1733441302438,9.4385,240.33,240.11,0.62221894]
[1733441302634,9.4385,240.33,240.12,20.77617539]
[1733441302930,9.4385,240.33,240.14,20.91870721]
[1733441303123,6.88932385,240.4,240.13,0.62220486]
[1733441303124,6.4884,240.39,240.16,20.89283017]
[1733441303326,6.4884,240.39,240.17,0.621829]
[1733441303731,6.4884,240.39,240.17,20.98350139]
[1733441304231,6.4884,240.39,240.18,20.16553355]
[1733441304456,6.4884,240.39,240.19,21.23802986]
[1733441304657,6.4884,240.39,240.19,0.6217641]
[1733441304856,6.4884,240.39,240.19,21.23802986]
[1733441305659,6.4884,240.39,240.19,0.6217641]
[1733441305949,6.4884,240.39,240.2,0.62197977]
[1733441306156,6.4884,240.39,240.15,20.72713074]
[1733441306354,6.4884,240.39,240.16,21.51482624]
[1733441306647,6.4884,240.39,240.16,0.62199607]
[1733441307424,6.4884,240.39,240.17,0.62226805]
[1733441308326,6.4884,240.39,240.18,0.62225546]
[1733441308834,0.78001315,240.38,240.18,0.62225546]
[1733441309156,23.776884,240.37,240.12,0.62242315]
[1733441309355,6.46523564,240.37,240.12,21.39859854]
[1733441309666,0.78008864,240.38,240.12,0.62242315]
[1733441309827,7.26851625,240.39,240.12,0.62242315]
[1733441310328,6.4884,240.39,240.13,20.34306941]
[1733441310533,6.4884,240.39,240.15,20.72713074]
[1733441310850,0.7800052,240.38,240.16,0.62220592]
[1733441311235,13.73374191,240.39,240.16,0.62220592]
[1733441311752,9.39113564,240.38,240.17,0.62239785]
[1733441311956,2.9259,240.38,240.17,0.62239785]
[1733441312634,2.9259,240.38,240.18,0.62210485]
[1733441313361,0.07929239,240.19,240.18,0.62210485]
[1733441314230,0.07929239,240.19,240.17,0.62214114]
[1733441314845,6.46523564,240.38,240.18,24.03153355]
[1733441315048,0.42408821,240.4,240.2,20.35813492]
[1733441315243,0.42408821,240.4,240.22,20.07641496]
[1733441315443,0.42408821,240.4,240.23,21.32657062]
[1733441317069,0.42408821,240.4,240.23,0.62144904]
[1733441317258,0.42408821,240.4,240.23,21.32657062]
[1733441317563,6.1636,240.39,240.23,0.62144904]
[1733441317729,6.1636,240.39,240.24,0.62213234]
[1733441318238,6.1636,240.39,240.37,207.80500252]
[1733441320281,0.42408821,240.4,240.38,0.62184078]
[1733441323696,0.42408821,240.4,240.38,3.63184078]
[1733441324067,0.42408821,240.4,240.38,0.62184078]
[1733441332879,0.42408821,240.4,240.37,207.80500252]
[1733441333196,9.1048,240.39,240.37,207.80500252]
[1733441333409,0.08930705,240.38,240.37,207.80500252]
[1733441335469,0.08930705,240.38,240.17,20.36167239]
[1733441335673,0.08930705,240.38,240.19,6.52]
[1733441335873,0.86944241,240.38,240.2,0.62246624]
[1733441336067,23.776884,240.37,240.2,0.62246624]
[1733441336395,6.1291,240.31,240.06,0.62282756]
[1733441336611,23.776884,240.28,240.06,0.62282756]
[1733441336811,23.776884,240.26,240.06,0.62282756]
[1733441336971,23.776884,240.24,239.99,0.62360754]
[1733441337311,32.881684,240.22,239.99,0.62360754]
[1733441337477,23.776884,240.2,239.95,0.62383744]
[1733441337676,0.78090553,240.19,239.96,5.23605568]
[1733441337910,0.78090553,240.19,239.97,0.62381655]
[1733441338485,9.1048,240.22,239.97,0.62381655]
[1733441338690,0.78071466,240.21,239.97,0.62381655]
[1733441338893,23.776884,240.2,239.97,0.62381655]
[1733441339095,23.776884,240.18,239.97,0.62381655]
[1733441339381,23.776884,240.16,239.97,0.62381655]
[1733441339601,0.78091845,240.15,239.97,0.62381655]
[1733441339801,9.1048,240.14,239.97,0.62381655]
[1733441340012,9.1048,240.14,239.98,31.13739693]
[1733441340189,9.1048,240.14,239.99,21.34418023]
[1733441340396,9.1048,240.14,239.99,0.62349411]
[1733441342808,9.1048,240.14,240.0,0.62400817]
[1733441343014,9.1048,240.14,239.96,0.62397687]
[1733441343381,23.776884,240.12,239.96,0.62397687]
[1733441343587,9.1048,240.1,239.95,13.83879823]
[1733441343809,2.9757,240.08,239.95,13.83879823]
[1733441343986,6.1291,240.06,239.94,4.97855357]
[1733441344197,0.78127871,240.05,239.94,4.97855357]
[1733441344423,2.9757,240.04,239.94,4.97855357]
[1733441344726,0.7812317,240.03,239.94,4.97855357]
[1733441345021,0.7812317,240.03,239.79,0.62475295]
[1733441345227,23.776884,240.01,239.8,0.62491404]
[1733441345397,0.78154488,240.0,239.7,0.6252359]
[1733441346104,0.78154488,240.0,239.71,20.78710285]
[1733441346295,0.78143118,239.99,239.72,21.60754328]
[1733441346635,0.78143711,240.01,239.72,32.20349008]
[1733441346797,9.1048,240.0,239.73,0.12549]
[1733441347119,0.78147631,239.99,239.74,0.62514815]
[1733441347895,0.78147631,239.99,239.75,0.62528902]
[1733441348095,0.78147631,239.99,239.7,0.62529336]
[1733441348815,0.78147631,239.99,239.71,0.12549]
[1733441349020,0.78147631,239.99,239.73,0.12549]
[1733441349221,0.78147631,239.99,239.75,0.12549]
[1733441349399,0.78147631,239.99,239.77,0.12549]
[1733441349911,6.1291,239.98,239.7,0.62526701]
[1733441350124,6.3172,239.95,239.7,0.62526701]
[1733441350433,0.78174673,239.94,239.7,0.62526701]
[1733441350624,0.78174673,239.94,239.71,0.12549]
[1733441350796,0.78174673,239.94,239.73,0.12549]
[1733441350999,0.78174673,239.94,239.75,0.12549]
[1733441351220,0.78174673,239.94,239.77,0.12549]
[1733441351417,0.78174673,239.94,239.76,0.62529061]
[1733441351630,0.78174673,239.94,239.69,0.62538302]
[1733441351821,0.78174673,239.94,239.7,0.12549]
[1733441352139,0.78174673,239.94,239.72,0.12549]
[1733441352337,0.78174673,239.94,239.74,0.12549]
[1733441352643,0.78174673,239.94,239.76,0.12549]
[1733441352931,6.3172,239.95,239.78,0.12549]
[1733441353106,6.3172,239.95,239.8,0.12549]
[1733441353313,0.78154632,239.94,239.81,0.62523705]
[1733441353512,0.0848679,239.79,239.71,0.62529973]
[1733441353821,0.0848679,239.79,239.72,0.12549]
[1733441354021,0.0848679,239.79,239.73,0.62537877]
[1733441354216,6.3172,239.78,239.69,0.62536742]
[1733441355451,0.78203888,239.77,239.68,5.47684473]
[1733441356045,0.78203888,239.77,239.5,0.6256775]
[1733441357006,2.4662,239.76,239.5,0.6256775]
[1733441357207,0.78233982,239.75,239.5,2.26427122]
[1733441357418,0.78233982,239.75,239.5,0.6256775]
[1733441357619,6.5288,239.74,239.5,0.6256775]
[1733441357847,2.4662,239.72,239.5,0.6256775]
[1733441358131,0.78245109,239.71,239.5,0.6256775]
[1733441359042,3.2485035,239.72,239.5,0.6256775]
[1733441359934,6.5288,239.71,239.5,0.6256775]
[1733441360150,0.0848679,239.79,239.49,16.42993685]
[1733441360151,8.995,239.69,239.49,1.65950696]
[1733441360385,0.78260886,239.68,239.44,1.11930971]
[1733441360539,0.78260886,239.68,239.44,0.4933036]
[1733441360540,2.4662,239.66,239.44,0.4933036]
[1733441360733,0.78275837,239.65,239.44,2.13101281]
[1733441360935,6.5288,239.64,239.44,0.4933036]
[1733441361175,6.5288,239.61,239.44,0.4933036]
[1733441361342,2.4662,239.59,239.44,0.4933036]
[1733441361674,0.78292743,239.58,239.44,0.4933036]
[1733441362175,2.4662,239.59,239.44,0.4933036]
[1733441362345,0.78278121,239.58,239.44,0.4933036]
[1733441362537,2.4662,239.59,239.44,0.4933036]
[1733441362940,2.4662,239.59,239.45,0.12549]
[1733441363143,0.78269524,239.58,239.45,0.75164619]
[1733441363776,0.78269524,239.58,239.44,2.18238769]
[1733441364079,0.78269524,239.58,239.44,0.4933036]
[1733441364480,0.78281494,239.57,239.44,0.4933036]
[1733441364649,0.78281494,239.57,239.45,0.12549]
[1733441364843,2.4662,239.59,239.45,0.12549]
[1733441365045,0.78270991,239.58,239.45,0.75165793]
[1733441365343,2.4662,239.59,239.45,0.75165793]
[1733441365649,2.4662,239.59,239.54,0.12549]
[1733441365855,2.4662,239.59,239.54,0.75141073]
[1733441366668,1.14490893,239.59,239.54,0.75141073]
[1733441366882,1.14490893,239.59,239.53,207.80500252]
[1733441367257,1.14490893,239.59,239.54,0.75151957]
[1733441367457,6.5288,239.72,239.54,0.75151957]
[1733441367769,0.68314502,239.72,239.65,0.12549]
[1733441368084,0.0848679,239.79,239.65,0.7510441]
[1733441368873,0.78214196,239.78,239.65,0.7510441]
[1733441369198,0.86698669,239.79,239.65,0.7510441]
[1733441369362,0.0848679,239.79,239.65,0.7510441]
[1733441369685,2.4662,239.78,239.65,0.7510441]
[1733441370100,2.4662,239.78,239.65,2.4556274]
[1733441370426,2.4662,239.78,239.65,0.7510441]
[1733441370681,0.78203724,239.77,239.65,0.7510441]
[1733441370884,6.5288,239.76,239.55,207.80500252]
[1733441371092,0.7823429,239.75,239.56,0.62587432]
[1733441371465,0.7823429,239.75,239.57,0.12549]
[1733441371790,6.5288,239.76,239.65,0.12549]
[1733441371972,6.5288,239.76,239.65,0.75110289]
[1733441372161,0.78196132,239.75,239.65,0.62561289]
[1733441372498,0.78196132,239.75,239.64,209.49673878]
[1733441373283,0.78196132,239.75,239.65,0.62576628]
[1733441373475,0.07829946,239.66,239.65,0.62576628]
[1733441373683,0.07829946,239.66,239.65,0.75125628]
[1733441373885,1e-08,239.7,239.66,0.12549]
[1733441374062,0.09091671,239.8,239.68,0.12549]
[1733441374268,4.5484646,239.76,239.75,207.80500252]
[1733441374470,0.95410486,239.78,239.74,207.80500252]
[1733441374688,0.95410486,239.78,239.64,209.49673878]
[1733441374886,0.78213338,239.77,239.64,209.49673878]
[1733441375101,0.78213338,239.77,239.64,207.80500252]
[1733441375278,0.78213338,239.77,239.65,0.62576481]
[1733441375478,0.95410486,239.78,239.53,0.12549]
[1733441375770,0.95410486,239.78,239.55,0.12549]
[1733441375972,0.95410486,239.78,239.56,0.62572383]
[1733441377293,0.95410486,239.78,239.53,0.62592178]
[1733441377469,8.924,239.76,239.53,0.62592178]
[1733441377670,0.7824211,239.75,239.53,0.62592178]
[1733441377969,0.7824211,239.75,239.54,0.12549]
[1733441378170,0.7824211,239.75,239.56,0.12549]
[1733441378374,0.7824211,239.75,239.57,0.62580153]
[1733441378587,8.924,239.76,239.57,4.154]
[1733441378788,8.924,239.76,239.6,0.12549]
[1733441378996,8.924,239.76,239.62,0.12549]
[1733441379202,8.924,239.76,239.64,0.12549]
[1733441379504,8.924,239.76,239.66,0.12549]
[1733441379802,8.924,239.76,239.67,0.62553913]
[1733441379972,8.924,239.76,239.57,4.154]
[1733441379973,8.924,239.76,239.68,0.12549]
[1733441380369,8.924,239.76,239.58,0.62555497]
[1733441380671,2.5212,239.76,239.6,4.154]
[1733441380867,2.5212,239.76,239.61,0.62553042]
[1733441381066,2.5642,240.0,239.68,6.5908]
[1733441381268,2.5642,240.09,239.93,24.94408041]
[1733441381502,2.5642,240.09,239.95,0.12549]
[1733441381673,6.4636,240.13,239.96,0.62366084]
[1733441382198,2.5642,240.18,239.99,0.12549]
[1733441382376,2.5642,240.18,239.98,20.54145013]
[1733441382377,2.5642,240.18,240.01,0.12549]
[1733441382573,2.5642,240.18,240.03,20.98887008]
[1733441382773,2.5642,240.18,240.05,0.12549]
[1733441382976,2.5642,240.18,240.07,0.12549]
[1733441383192,2.5642,240.18,240.09,0.12549]
[1733441383676,2.5642,240.18,240.03,0.12549]
[1733441384001,2.5642,240.18,240.05,0.12549]
[1733441384293,2.5642,240.18,240.06,0.62333171]
[1733441384673,2.5642,240.18,240.07,0.12549]
[1733441384999,2.5642,240.18,240.09,0.12549]
[1733441385169,2.5642,240.18,240.11,0.12549]
[1733441385372,2.5642,240.18,240.13,0.12549]
[1733441385591,2.5642,240.29,240.13,0.12549]
[1733441386101,2.5642,240.29,240.13,0.74843427]
[1733441388078,2.3424,240.38,240.14,4.154]
[1733441388275,2.3424,240.38,240.17,0.12549]
[1733441388601,2.3424,240.38,240.19,0.12549]
[1733441388773,0.78004999,240.37,240.21,0.12549]
[1733441388980,2.3424,240.38,240.21,0.12549]
[1733441389172,2.3424,240.38,240.23,0.12549]
[1733441389378,2.3424,240.38,240.25,0.12549]
[1733441389576,0.3070736,240.27,240.26,0.74740072]
[1733441390787,0.3070736,240.27,240.26,0.62191072]
[1733441391009,0.3070736,240.27,240.18,0.6224086]
[1733441391594,0.3070736,240.27,240.19,0.12549]
[1733441391895,0.3070736,240.27,240.21,0.12549]
[1733441392097,0.3070736,240.27,240.23,0.12549]
[1733441392272,0.3070736,240.27,240.25,0.12549]
[1733441393007,0.3070736,240.27,240.26,0.12549]
[1733441393386,0.39069364,240.27,240.26,0.12549]
[1733441395386,0.08716063,240.28,240.26,0.12549]
[1733441395576,0.08716063,240.28,240.27,0.74749892]
[1733441396473,0.08716063,240.28,240.27,0.12549]
[1733441396681,0.08716063,240.28,240.2,0.62201649]
[1733441397085,0.08716063,240.28,240.11,4.8203995]
[1733441397312,0.08716063,240.28,240.12,21.39881787]
[1733441397515,0.08716063,240.28,240.13,4.8203995]
[1733441397714,0.08716063,240.28,240.15,0.12549]
[1733441397922,0.08716063,240.28,240.17,0.12549]
[1733441398219,0.08716063,240.28,240.19,0.12549]
[1733441398515,0.08716063,240.28,240.21,0.12549]
[1733441398694,0.08716063,240.28,240.23,23.902374]
[1733441398890,0.08716063,240.28,240.25,23.776884]
[1733441399111,0.08716063,240.28,240.26,0.62245384]
[1733441399590,0.08716063,240.28,240.18,0.12549]
[1733441399793,0.08716063,240.28,240.2,0.12549]
[1733441400126,0.08716063,240.28,240.22,0.12549]
[1733441400294,0.08716063,240.28,240.24,0.12549]
[1733441400497,0.08716063,240.28,240.26,23.902374]
[1733441400691,0.08716063,240.28,240.27,24.52441773]
[1733441402027,0.08716063,240.28,240.27,0.62204373]
[1733441402323,0.08716063,240.28,240.18,0.62247874]
[1733441402524,0.08716063,240.28,240.12,4.8203995]
[1733441402826,0.08716063,240.28,240.13,0.62263376]
[1733441403029,0.08716063,240.28,240.14,4.8203995]
[1733441403328,0.08716063,240.28,240.16,0.12549]
[1733441403630,0.08716063,240.28,240.18,23.902374]
[1733441403793,0.08716063,240.28,240.2,23.776884]
[1733441403996,0.08716063,240.28,240.21,0.62249926]
[1733441404195,0.08716063,240.28,240.18,0.62275666]
[1733441404395,0.08716063,240.28,240.14,20.91870721]
[1733441404714,0.08716063,240.28,240.2,0.12549]
[1733441404918,0.08716063,240.28,240.19,4.8203995]
[1733441404919,0.08716063,240.28,240.21,0.6221544]
[1733441405117,0.08716063,240.28,240.22,0.12549]
[1733441405626,0.08716063,240.28,240.22,23.902374]
[1733441405829,0.08716063,240.28,240.24,23.902374]
[1733441406128,0.08716063,240.28,240.26,23.902374]
[1733441406296,0.08716063,240.28,240.27,24.52458986]
[1733441406500,0.08323943,240.29,240.27,24.52458986]
[1733441406501,0.08323943,240.29,240.28,23.902374]
[1733441407958,0.08323943,240.29,240.28,0.12549]
[1733441408233,0.08323943,240.29,240.28,0.62217801]
[1733441408415,0.08323943,240.29,240.28,0.74766801]
[1733441409120,0.08323943,240.29,240.28,0.12549]
[1733441409315,0.08323943,240.29,240.22,0.62208864]
[1733441409514,0.08323943,240.29,240.23,5.44245204]
[1733441410512,0.08323943,240.29,240.24,23.776884]
[1733441410708,0.08323943,240.29,240.25,0.62218354]
[1733441411305,0.08323943,240.29,240.22,0.62239735]
[1733441412334,0.08323943,240.29,240.23,23.776884]
[1733441412642,0.08323943,240.29,240.25,23.776884]
[1733441412938,0.08323943,240.29,240.27,23.776884]
[1733441413239,0.08323943,240.29,240.28,0.62196105]
[1733441413410,0.16989183,240.29,240.28,24.39884505]
[1733441414113,0.16989183,240.29,240.28,0.62196105]
[1733441414313,0.16989183,240.29,240.22,0.62229448]
[1733441414810,0.04449183,240.29,240.23,6.39499]
[1733441415015,0.04449183,240.29,240.25,0.12549]
[1733441415212,0.04449183,240.29,240.27,0.12549]
[1733441415480,0.04449183,240.29,240.26,0.62168586]
[1733441415481,0.07707253,240.3,240.29,23.776884]
[1733441416036,0.07707253,240.3,240.29,207.61560916]
[1733441419341,0.07707253,240.3,240.29,207.74109916]
[1733441419724,0.07707253,240.3,240.29,231.39249316]
[1733441420435,0.07707253,240.3,240.29,207.61560916]
[1733441420833,2.68517253,240.3,240.29,207.61560916]
[1733441421956,0.07707253,240.3,240.29,207.61560916]
[1733441423428,0.07707253,240.3,240.29,231.51798316]
[1733441423847,0.07707253,240.3,240.29,207.61560916]
[1733441424945,0.07707253,240.3,240.29,231.51798316]
[1733441425152,0.07707253,240.3,240.29,235.67198316]
[1733441425649,0.07707253,240.3,240.29,231.51798316]
[1733441425831,0.07707253,240.3,240.19,10.7160746]
[1733441426145,0.07707253,240.3,240.28,207.61560916]
[1733441428925,2.6081,240.28,240.02,6.5692]
[1733441429250,0.78058516,240.27,240.15,207.61560916]
[1733441432453,2.6081,240.25,240.05,213.26431002]
[1733441432622,2.5231,240.22,240.05,213.26431002]
[1733441432818,0.78097969,240.21,240.05,213.26431002]
[1733441433552,0.08234381,240.06,240.05,207.61560916]
[1733441434736,0.08234381,240.06,239.93,207.61560916]
[1733441434933,0.78118769,240.05,239.84,5.6543478]
[1733441435526,8.9254,240.04,239.84,5.6543478]
[1733441435732,0.7815548,240.03,239.84,5.6543478]
[1733441436043,0.7815548,240.03,239.85,0.62510085]
[1733441436245,0.7815548,240.03,239.84,5.6543478]
[1733441436441,0.7815548,240.03,239.85,0.6252287]
[1733441437048,0.7815548,240.03,239.84,5.6543478]
[1733441437434,0.7815548,240.03,239.85,0.62525566]
[1733441438443,0.7815548,240.03,239.84,5.6543478]
[1733441439253,0.25098,240.02,239.84,5.6543478]
[1733441439454,2.64859,239.97,239.72,0.62536571]
[1733441439658,0.78184901,239.96,239.69,0.62547921]
[1733441439840,0.25098,239.95,239.69,0.62547921]
[1733441440044,7.18420916,239.94,239.69,0.62547921]
[1733441440247,2.77408,239.93,239.69,0.62547921]
[1733441440562,0.25098,239.91,239.69,0.62547921]
[1733441440739,0.78204178,239.9,239.7,0.62563342]
[1733441440934,0.78204178,239.9,239.6,0.62556356]
[1733441441369,8.9254,239.89,239.6,0.62556356]
[1733441441665,0.78203377,239.88,239.6,0.62556356]
[1733441442563,8.9254,239.89,239.69,0.75103203]
[1733441443134,0.78170162,239.88,239.69,0.75103203]
[1733441443563,8.9254,239.89,239.69,0.75103203]
[1733441443750,0.78176901,239.88,239.69,0.75103203]
[1733441444254,8.9254,239.89,239.69,0.75103203]
[1733441444631,0.78177194,239.88,239.69,0.75103203]
[1733441445238,0.78177194,239.88,239.69,0.62554203]
[1733441445431,0.78177194,239.88,239.61,0.62560161]
[1733441446566,0.78177194,239.88,239.69,0.12549]
[1733441446773,0.78177194,239.88,239.69,0.75101507]
[1733441447263,0.78177194,239.88,239.69,0.62552507]
[1733441447578,0.78177194,239.88,239.6,0.62559368]
[1733441449247,9.30199,239.81,239.44,0.4933036]
[1733441449549,0.78177194,239.88,239.44,0.4933036]
[1733441449550,0.12549,239.7,239.44,1.1194284]
[1733441449742,2.5532,239.67,239.44,0.4933036]